[Event "Late-Titled-Tuesday-Blitz-February-20-2024"]
[Site "Chess.com"]
[Date "2024.02.20"]
[Round "8"]
[White "yuriydovzik"]
[Black "AndresDelgado77"]
[Result "0-1"]
[WhiteElo "2163"]
[BlackElo "2276"]
[TimeControl "180+1"]
[EndTime "15:27:05 PST"]
[Termination "AndresDelgado77 won on time"]

1. Nf3 {[%clk 0:02:59]} 1... Nf6 {[%clk 0:02:57.5]} 2. g3 {[%clk 0:02:56.8]}
2... g6 {[%clk 0:02:52.1]} 3. Bg2 {[%clk 0:02:56.2]} 3... Bg7 {[%clk 0:02:52.5]}
4. c4 {[%clk 0:02:55.8]} 4... O-O {[%clk 0:02:52.4]} 5. O-O {[%clk 0:02:55.1]}
5... d6 {[%clk 0:02:52.8]} 6. d4 {[%clk 0:02:52.8]} 6... c6 {[%clk 0:02:53.1]}
7. Nc3 {[%clk 0:02:52.2]} 7... Qb6 {[%clk 0:02:53.1]} 8. b3 {[%clk 0:02:36.8]}
8... Qa6 {[%clk 0:02:47.9]} 9. Bb2 {[%clk 0:02:27]} 9... b5 {[%clk 0:02:45.1]}
10. cxb5 {[%clk 0:02:23.7]} 10... cxb5 {[%clk 0:02:45]} 11. Re1 {[%clk
0:02:00.8]} 11... b4 {[%clk 0:02:40.1]} 12. Nb1 {[%clk 0:01:52.6]} 12... Bb7
{[%clk 0:02:38.8]} 13. Nbd2 {[%clk 0:01:47.8]} 13... Ne4 {[%clk 0:02:32.4]} 14.
Nxe4 {[%clk 0:01:42.6]} 14... Bxe4 {[%clk 0:02:32]} 15. e3 {[%clk 0:01:39.7]}
15... Qb7 {[%clk 0:02:24.4]} 16. Rc1 {[%clk 0:01:30.5]} 16... Nd7 {[%clk
0:02:21.8]} 17. Nh4 {[%clk 0:01:19.3]} 17... Bxg2 {[%clk 0:02:21]} 18. Nxg2
{[%clk 0:01:19.1]} 18... Rfc8 {[%clk 0:02:15.9]} 19. Qd2 {[%clk 0:01:06.5]}
19... Nf6 {[%clk 0:02:14.6]} 20. Rxc8+ {[%clk 0:00:51.6]} 20... Rxc8 {[%clk
0:02:13.7]} 21. Rc1 {[%clk 0:00:44.9]} 21... Ne4 {[%clk 0:02:13.6]} 22. Qd1
{[%clk 0:00:37]} 22... Ng5 {[%clk 0:01:47.3]} 23. Rxc8+ {[%clk 0:00:23.6]} 23...
Qxc8 {[%clk 0:01:45.1]} 24. h4 {[%clk 0:00:20.6]} 24... Ne4 {[%clk 0:01:38.5]}
25. Nf4 {[%clk 0:00:13.7]} 25... Qa6 {[%clk 0:01:23.8]} 26. Qb1 {[%clk
0:00:07.5]} 26... f5 {[%clk 0:00:59]} 27. Nd3 {[%clk 0:00:05.9]} 27... Qb7
{[%clk 0:00:51.5]} 0-1

[Event "Late-Titled-Tuesday-Blitz-February-20-2024"]
[Site "Chess.com"]
[Date "2024.02.20"]
[Round "8"]
[White "Inepton_Fermion"]
[Black "noblerone"]
[Result "1-0"]
[WhiteElo "2406"]
[BlackElo "2500"]
[TimeControl "180+1"]
[EndTime "15:27:07 PST"]
[Termination "Inepton_Fermion won by resignation"]

1. Nf3 {[%clk 0:02:57.1]} 1... d5 {[%clk 0:02:58]} 2. b3 {[%clk 0:02:57.6]} 2...
Nf6 {[%clk 0:02:56.9]} 3. Bb2 {[%clk 0:02:57.8]} 3... Bg4 {[%clk 0:02:49.9]} 4.
d3 {[%clk 0:02:53.3]} 4... Nbd7 {[%clk 0:02:49.4]} 5. Nbd2 {[%clk 0:02:50.2]}
5... e6 {[%clk 0:02:46.6]} 6. h3 {[%clk 0:02:50.5]} 6... Bh5 {[%clk 0:02:44.3]}
7. e4 {[%clk 0:02:50.7]} 7... c6 {[%clk 0:02:38.2]} 8. Be2 {[%clk 0:02:48.5]}
8... a5 {[%clk 0:02:36.8]} 9. e5 {[%clk 0:02:44.1]} 9... Ng8 {[%clk 0:02:34]}
10. a4 {[%clk 0:02:44.8]} 10... Ne7 {[%clk 0:02:23.8]} 11. O-O {[%clk
0:02:42.8]} 11... c5 {[%clk 0:02:07.2]} 12. c4 {[%clk 0:02:32.5]} 12... d4
{[%clk 0:02:04.8]} 13. Nxd4 {[%clk 0:02:15.6]} 13... cxd4 {[%clk 0:01:45.2]} 14.
Bxh5 {[%clk 0:02:14.8]} 14... Nc6 {[%clk 0:01:39]} 15. f4 {[%clk 0:02:12.6]}
15... g6 {[%clk 0:01:38.8]} 16. Bf3 {[%clk 0:02:12.4]} 16... Nb4 {[%clk
0:01:36.8]} 17. Ne4 {[%clk 0:02:12.3]} 17... Nc5 {[%clk 0:01:33.4]} 18. Nf6+
{[%clk 0:02:12]} 18... Ke7 {[%clk 0:01:32.2]} 19. Ba3 {[%clk 0:01:59.2]} 19...
Bg7 {[%clk 0:01:27]} 20. Ne4 {[%clk 0:01:40.6]} 20... b6 {[%clk 0:01:18.9]} 21.
Bxb4 {[%clk 0:01:28.7]} 21... axb4 {[%clk 0:01:18.8]} 22. Nxc5 {[%clk
0:01:29.3]} 22... bxc5 {[%clk 0:01:19.7]} 23. Bxa8 {[%clk 0:01:29.6]} 23... Qxa8
{[%clk 0:01:20.6]} 24. Qf3 {[%clk 0:01:29.8]} 24... Qa6 {[%clk 0:01:17.8]} 25.
g4 {[%clk 0:01:19.3]} 25... h5 {[%clk 0:01:17.4]} 26. f5 {[%clk 0:01:12.6]}
26... Bxe5 {[%clk 0:01:12.8]} 27. fxg6 {[%clk 0:01:12.1]} 27... f6 {[%clk
0:01:11]} 28. gxh5 {[%clk 0:01:09.1]} 28... Qc8 {[%clk 0:01:09.1]} 29. Ra2
{[%clk 0:00:48.2]} 29... Kf8 {[%clk 0:01:02.8]} 30. Re2 {[%clk 0:00:37.7]} 30...
Kg7 {[%clk 0:00:27.7]} 31. Rxe5 {[%clk 0:00:33.9]} 31... fxe5 {[%clk 0:00:28.6]}
32. Qf6+ {[%clk 0:00:33.8]} 32... Kh6 {[%clk 0:00:29.2]} 33. g7+ {[%clk
0:00:33.6]} 33... Kh7 {[%clk 0:00:29.1]} 34. Qg6+ {[%clk 0:00:31.9]} 1-0

[Event "Late-Titled-Tuesday-Blitz-February-20-2024"]
[Site "Chess.com"]
[Date "2024.02.20"]
[Round "8"]
[White "RantomOpening"]
[Black "Balla_Tamas"]
[Result "1-0"]
[WhiteElo "2583"]
[BlackElo "2395"]
[TimeControl "180+1"]
[EndTime "15:27:13 PST"]
[Termination "RantomOpening won by resignation"]

1. c4 {[%clk 0:03:00]} 1... c5 {[%clk 0:02:59.8]} 2. Nf3 {[%clk 0:02:57.3]} 2...
Nc6 {[%clk 0:02:59.8]} 3. Nc3 {[%clk 0:02:57.3]} 3... g6 {[%clk 0:02:59.8]} 4.
e3 {[%clk 0:02:57]} 4... Nf6 {[%clk 0:02:59.9]} 5. d4 {[%clk 0:02:57.4]} 5...
cxd4 {[%clk 0:03:00.8]} 6. exd4 {[%clk 0:02:58.3]} 6... d5 {[%clk 0:03:01.4]} 7.
cxd5 {[%clk 0:02:59.2]} 7... Nxd5 {[%clk 0:03:01.6]} 8. Qb3 {[%clk 0:02:59.9]}
8... Nxc3 {[%clk 0:03:01.3]} 9. Bc4 {[%clk 0:02:57.3]} 9... e6 {[%clk
0:03:01.2]} 10. bxc3 {[%clk 0:02:56.2]} 10... Bd7 {[%clk 0:03:00.5]} 11. Be2
{[%clk 0:02:46.9]} 11... Na5 {[%clk 0:02:48.1]} 12. Qb1 {[%clk 0:02:45.7]} 12...
Rc8 {[%clk 0:02:46.4]} 13. O-O {[%clk 0:02:44.9]} 13... Be7 {[%clk 0:02:28.9]}
14. Bh6 {[%clk 0:02:42.8]} 14... Bf8 {[%clk 0:02:14.4]} 15. Bxf8 {[%clk
0:02:41.7]} 15... Kxf8 {[%clk 0:02:15.3]} 16. Ne5 {[%clk 0:02:36.1]} 16... Bc6
{[%clk 0:02:08.8]} 17. Rd1 {[%clk 0:02:13.6]} 17... Bd5 {[%clk 0:02:07.3]} 18.
Qb4+ {[%clk 0:01:51.1]} 18... Kg7 {[%clk 0:02:05.5]} 19. c4 {[%clk 0:01:50.8]}
19... Nc6 {[%clk 0:01:13.9]} 20. Nxc6 {[%clk 0:01:49.6]} 20... Bxc6 {[%clk
0:01:13.8]} 21. d5 {[%clk 0:01:50.1]} 21... exd5 {[%clk 0:01:13.9]} 22. cxd5
{[%clk 0:01:50.2]} 22... Bd7 {[%clk 0:01:10.9]} 23. Qxb7 {[%clk 0:01:45.3]}
23... Re8 {[%clk 0:01:09.6]} 24. Bf3 {[%clk 0:01:43.1]} 24... a5 {[%clk
0:01:01.9]} 25. Qa7 {[%clk 0:01:40.6]} 25... Bf5 {[%clk 0:00:56.3]} 26. d6
{[%clk 0:01:33.4]} 26... Qd7 {[%clk 0:00:32.2]} 27. Qd4+ {[%clk 0:01:31.8]}
27... Kg8 {[%clk 0:00:30.7]} 28. h3 {[%clk 0:01:24.2]} 28... h5 {[%clk
0:00:29.6]} 29. Rac1 {[%clk 0:01:22.9]} 29... Rxc1 {[%clk 0:00:28.2]} 30. Rxc1
{[%clk 0:01:23.8]} 30... Rd8 {[%clk 0:00:28.8]} 31. Rd1 {[%clk 0:01:21.4]} 31...
Be6 {[%clk 0:00:27.1]} 32. Qb6 {[%clk 0:01:20.9]} 32... a4 {[%clk 0:00:24.5]}
33. Bc6 {[%clk 0:01:20.3]} 33... Qc8 {[%clk 0:00:20.4]} 34. Bxa4 {[%clk
0:01:15.8]} 34... Bxa2 {[%clk 0:00:20.1]} 35. d7 {[%clk 0:01:11.7]} 35... Qa8
{[%clk 0:00:20.1]} 36. Bc6 {[%clk 0:00:56.8]} 1-0

[Event "Late-Titled-Tuesday-Blitz-February-20-2024"]
[Site "Chess.com"]
[Date "2024.02.20"]
[Round "8"]
[White "Alex_Sahakyan2006"]
[Black "aistrel"]
[Result "1-0"]
[WhiteElo "2832"]
[BlackElo "2556"]
[TimeControl "180+1"]
[EndTime "15:27:15 PST"]
[Termination "Alex_Sahakyan2006 won by checkmate"]

1. e4 {[%clk 0:03:00.4]} 1... c6 {[%clk 0:02:58.2]} 2. Nc3 {[%clk 0:03:00.2]}
2... d5 {[%clk 0:02:57]} 3. d4 {[%clk 0:03:00.4]} 3... dxe4 {[%clk 0:02:57.2]}
4. Nxe4 {[%clk 0:03:01.3]} 4... Nf6 {[%clk 0:02:57.8]} 5. Nxf6+ {[%clk
0:03:01.9]} 5... exf6 {[%clk 0:02:58.7]} 6. Bd3 {[%clk 0:03:01.1]} 6... Qxd4
{[%clk 0:02:52]} 7. Ne2 {[%clk 0:03:00.9]} 7... Qh4 {[%clk 0:02:43.2]} 8. O-O
{[%clk 0:02:55]} 8... Bd6 {[%clk 0:02:43.4]} 9. g3 {[%clk 0:02:51.3]} 9... Qh5
{[%clk 0:02:36.2]} 10. Re1 {[%clk 0:02:38.8]} 10... Be6 {[%clk 0:02:25.7]} 11.
Bf4 {[%clk 0:02:31.5]} 11... Bc5 {[%clk 0:02:14.2]} 12. b4 {[%clk 0:01:17.1]}
12... Bxb4 {[%clk 0:01:40.9]} 13. c3 {[%clk 0:01:14.5]} 13... Bc5 {[%clk
0:01:40.6]} 14. Qb1 {[%clk 0:01:11.4]} 14... O-O {[%clk 0:01:18.8]} 15. Nd4
{[%clk 0:00:48.6]} 15... Bxd4 {[%clk 0:01:01.2]} 16. cxd4 {[%clk 0:00:46.8]}
16... Bd5 {[%clk 0:01:01.7]} 17. Be2 {[%clk 0:00:40.9]} 17... Qh3 {[%clk
0:00:56.3]} 18. Bf1 {[%clk 0:00:39.1]} 18... Qg4 {[%clk 0:00:56.8]} 19. Re3
{[%clk 0:00:20.6]} 19... Qd7 {[%clk 0:00:52.3]} 20. Bd3 {[%clk 0:00:19.2]} 20...
g5 {[%clk 0:00:49.4]} 21. Bxh7+ {[%clk 0:00:15.8]} 21... Kg7 {[%clk 0:00:49.9]}
22. Bf5 {[%clk 0:00:16.7]} 22... Qd8 {[%clk 0:00:40.8]} 23. Qxb7 {[%clk
0:00:10.7]} 23... gxf4 {[%clk 0:00:32.8]} 24. gxf4 {[%clk 0:00:11.6]} 24... Qb6
{[%clk 0:00:32.9]} 25. Rg3+ {[%clk 0:00:06.2]} 25... Kh6 {[%clk 0:00:33.2]} 26.
Qe7 {[%clk 0:00:06.6]} 26... Qxd4 {[%clk 0:00:31.9]} 27. Qxf8+ {[%clk
0:00:06.8]} 27... Kh5 {[%clk 0:00:30.6]} 28. Qh8# {[%clk 0:00:07.4]} 1-0

[Event "Late-Titled-Tuesday-Blitz-February-20-2024"]
[Site "Chess.com"]
[Date "2024.02.20"]
[Round "8"]
[White "IraZyne"]
[Black "bocah_sakit"]
[Result "0-1"]
[WhiteElo "2360"]
[BlackElo "2512"]
[TimeControl "180+1"]
[EndTime "15:27:19 PST"]
[Termination "bocah_sakit won by checkmate"]

1. e4 {[%clk 0:02:58.7]} 1... c5 {[%clk 0:02:58.8]} 2. Nc3 {[%clk 0:02:58.1]}
2... Nc6 {[%clk 0:02:59.7]} 3. g3 {[%clk 0:02:58.1]} 3... g6 {[%clk 0:03:00.2]}
4. Bg2 {[%clk 0:02:58.1]} 4... Bg7 {[%clk 0:03:01.1]} 5. d3 {[%clk 0:02:58]}
5... e6 {[%clk 0:03:01]} 6. Be3 {[%clk 0:02:57.1]} 6... Nd4 {[%clk 0:03:00.9]}
7. Nce2 {[%clk 0:02:57.1]} 7... e5 {[%clk 0:03:00.3]} 8. c3 {[%clk 0:02:57.1]}
8... Ne6 {[%clk 0:03:00.5]} 9. Qd2 {[%clk 0:02:56.9]} 9... Ne7 {[%clk
0:02:58.6]} 10. Nh3 {[%clk 0:02:56.2]} 10... d5 {[%clk 0:02:58.7]} 11. O-O-O
{[%clk 0:02:53.2]} 11... h6 {[%clk 0:02:56.6]} 12. f4 {[%clk 0:02:51.3]} 12...
dxe4 {[%clk 0:02:50.9]} 13. dxe4 {[%clk 0:02:50.5]} 13... Qxd2+ {[%clk
0:02:49.3]} 14. Rxd2 {[%clk 0:02:50.8]} 14... exf4 {[%clk 0:02:49.8]} 15. gxf4
{[%clk 0:02:46.3]} 15... f5 {[%clk 0:02:48.5]} 16. e5 {[%clk 0:02:43.3]} 16...
Rb8 {[%clk 0:02:37.1]} 17. Rhd1 {[%clk 0:02:40.1]} 17... Kf7 {[%clk 0:02:35.1]}
18. c4 {[%clk 0:02:32.5]} 18... b6 {[%clk 0:02:31.6]} 19. Bd5 {[%clk 0:02:32.1]}
19... Re8 {[%clk 0:02:12.3]} 20. Nc3 {[%clk 0:02:30.5]} 20... Ba6 {[%clk
0:02:09.6]} 21. b3 {[%clk 0:02:23.1]} 21... Rbc8 {[%clk 0:02:04]} 22. Kb2 {[%clk
0:02:20.8]} 22... g5 {[%clk 0:01:57]} 23. fxg5 {[%clk 0:02:12.2]} 23... Bxe5
{[%clk 0:01:57.2]} 24. gxh6 {[%clk 0:02:10.9]} 24... Nxd5 {[%clk 0:01:57.5]} 25.
Rxd5 {[%clk 0:02:06.3]} 25... Kf6 {[%clk 0:01:53.8]} 26. Bf2 {[%clk 0:01:49.7]}
26... Nd4 {[%clk 0:01:36.2]} 27. Kb1 {[%clk 0:01:22.7]} 27... Nf3 {[%clk
0:01:26.3]} 28. Ne2 {[%clk 0:01:00.8]} 28... Bb7 {[%clk 0:01:24.4]} 29. Rd7
{[%clk 0:00:59.3]} 29... Be4+ {[%clk 0:01:24.2]} 30. Kc1 {[%clk 0:00:58]} 30...
Rh8 {[%clk 0:01:17.9]} 31. Nef4 {[%clk 0:00:55.9]} 31... Rxh6 {[%clk 0:01:15.2]}
32. Bg3 {[%clk 0:00:50.9]} 32... Rch8 {[%clk 0:01:09.8]} 33. Nf2 {[%clk
0:00:49.9]} 33... Rxh2 {[%clk 0:01:07]} 34. Bxh2 {[%clk 0:00:48.4]} 34... Rxh2
{[%clk 0:01:07.9]} 35. Nxe4+ {[%clk 0:00:48.2]} 35... fxe4 {[%clk 0:01:08.6]}
36. Nd5+ {[%clk 0:00:48]} 36... Ke6 {[%clk 0:01:07.2]} 37. Re7+ {[%clk
0:00:47.6]} 37... Kd6 {[%clk 0:01:07.2]} 38. Rf7 {[%clk 0:00:45.8]} 38... Bb2+
{[%clk 0:01:05.4]} 39. Kb1 {[%clk 0:00:44.9]} 39... Bd4 {[%clk 0:01:06.3]} 40.
b4 {[%clk 0:00:36.8]} 40... Nd2+ {[%clk 0:01:01.7]} 41. Kc1 {[%clk 0:00:35.7]}
41... Nxc4 {[%clk 0:01:01.7]} 42. Nf4 {[%clk 0:00:32.6]} 42... Ke5 {[%clk
0:00:59.3]} 43. Ng6+ {[%clk 0:00:30.7]} 43... Ke6 {[%clk 0:00:59.8]} 44. Rdf1
{[%clk 0:00:30.6]} 44... Bb2+ {[%clk 0:00:58.5]} 45. Kd1 {[%clk 0:00:27.9]}
45... Ne3+ {[%clk 0:00:58.9]} 46. Ke1 {[%clk 0:00:28.3]} 46... Bc3# {[%clk
0:00:59.8]} 0-1

[Event "Late-Titled-Tuesday-Blitz-February-20-2024"]
[Site "Chess.com"]
[Date "2024.02.20"]
[Round "8"]
[White "Mikhal867"]
[Black "Ready4abattle"]
[Result "1-0"]
[WhiteElo "2436"]
[BlackElo "2284"]
[TimeControl "180+1"]
[EndTime "15:27:19 PST"]
[Termination "Mikhal867 won by resignation"]

1. d4 {[%clk 0:01:51.8]} 1... Nf6 {[%clk 0:02:11.3]} 2. c4 {[%clk 0:01:41.5]}
2... g6 {[%clk 0:02:11.6]} 3. f3 {[%clk 0:01:40.2]} 3... e6 {[%clk 0:02:11.5]}
4. e4 {[%clk 0:01:39.5]} 4... d5 {[%clk 0:02:11.9]} 5. e5 {[%clk 0:01:38.2]}
5... Nh5 {[%clk 0:02:11.8]} 6. Nc3 {[%clk 0:01:33]} 6... Qh4+ {[%clk 0:02:05]}
7. Ke2 {[%clk 0:01:23.6]} 7... Ng3+ {[%clk 0:01:58.1]} 8. hxg3 {[%clk
0:01:23.2]} 8... Qxh1 {[%clk 0:01:59]} 9. Nh3 {[%clk 0:01:13.1]} 9... dxc4
{[%clk 0:01:40]} 10. Qa4+ {[%clk 0:01:02.4]} 10... Nc6 {[%clk 0:01:39.2]} 11.
Ne4 {[%clk 0:00:56.5]} 11... Be7 {[%clk 0:01:14]} 12. Kf2 {[%clk 0:00:56.2]}
12... Bd7 {[%clk 0:01:06]} 13. Qxc4 {[%clk 0:00:53.6]} 13... b5 {[%clk
0:01:01.9]} 14. Qc3 {[%clk 0:00:48.7]} 14... b4 {[%clk 0:00:48.9]} 15. Qc4
{[%clk 0:00:45.1]} 15... h5 {[%clk 0:00:48.6]} 16. Bg5 {[%clk 0:00:41.2]} 16...
h4 {[%clk 0:00:46.4]} 17. gxh4 {[%clk 0:00:30.2]} 17... Bxg5 {[%clk 0:00:38.4]}
18. hxg5 {[%clk 0:00:30]} 18... Qh2 {[%clk 0:00:25.4]} 19. Nf6+ {[%clk
0:00:24.2]} 19... Kd8 {[%clk 0:00:25.7]} 20. Ng4 {[%clk 0:00:22.7]} 20... Qh1
{[%clk 0:00:17.6]} 21. Rc1 {[%clk 0:00:21.5]} 21... Rh4 {[%clk 0:00:12.5]} 22.
Bd3 {[%clk 0:00:20.8]} 22... Rxh3 {[%clk 0:00:10.5]} 23. Rxh1 {[%clk 0:00:18.5]}
23... Rxh1 {[%clk 0:00:11.4]} 24. Be4 {[%clk 0:00:18.2]} 24... Rd1 {[%clk
0:00:10.3]} 25. Bxc6 {[%clk 0:00:18.2]} 1-0

[Event "Late-Titled-Tuesday-Blitz-February-20-2024"]
[Site "Chess.com"]
[Date "2024.02.20"]
[Round "8"]
[White "campochess"]
[Black "Bkmzzzzz"]
[Result "0-1"]
[WhiteElo "2156"]
[BlackElo "2374"]
[TimeControl "180+1"]
[EndTime "15:27:22 PST"]
[Termination "Bkmzzzzz won by resignation"]

1. d4 {[%clk 0:02:46.4]} 1... d5 {[%clk 0:02:59.7]} 2. Bg5 {[%clk 0:02:46]} 2...
h6 {[%clk 0:02:58.9]} 3. Bf4 {[%clk 0:02:44.8]} 3... e6 {[%clk 0:02:53.9]} 4. e3
{[%clk 0:02:42.5]} 4... Bd6 {[%clk 0:02:54.4]} 5. Ne2 {[%clk 0:02:40.6]} 5...
Nf6 {[%clk 0:02:53.8]} 6. Nbc3 {[%clk 0:02:39.4]} 6... a6 {[%clk 0:02:44.8]} 7.
h3 {[%clk 0:02:38.1]} 7... b5 {[%clk 0:02:43.1]} 8. a3 {[%clk 0:02:36.8]} 8...
c5 {[%clk 0:02:41.5]} 9. Bxd6 {[%clk 0:02:35.1]} 9... Qxd6 {[%clk 0:02:42.4]}
10. dxc5 {[%clk 0:02:34.9]} 10... Qxc5 {[%clk 0:02:43.3]} 11. Nd4 {[%clk
0:02:27.9]} 11... O-O {[%clk 0:02:42.2]} 12. Be2 {[%clk 0:02:26.4]} 12... Nbd7
{[%clk 0:02:31.1]} 13. O-O {[%clk 0:02:25]} 13... Nb6 {[%clk 0:02:30.8]} 14. f4
{[%clk 0:02:18.6]} 14... Bb7 {[%clk 0:02:27.3]} 15. Kh1 {[%clk 0:02:18.1]} 15...
Rae8 {[%clk 0:02:20.3]} 16. Qd2 {[%clk 0:02:13]} 16... e5 {[%clk 0:02:19.1]} 17.
Nb3 {[%clk 0:02:11.4]} 17... Qc7 {[%clk 0:02:12.5]} 18. Rac1 {[%clk 0:01:59.3]}
18... Nc4 {[%clk 0:02:03.2]} 19. Bxc4 {[%clk 0:01:57.6]} 19... dxc4 {[%clk
0:02:04.1]} 20. Na1 {[%clk 0:01:49.7]} 20... Nh5 {[%clk 0:01:36.7]} 21. Qf2
{[%clk 0:01:40.8]} 21... exf4 {[%clk 0:01:29.9]} 22. exf4 {[%clk 0:01:39.4]}
22... Re6 {[%clk 0:01:30.4]} 23. f5 {[%clk 0:01:26.2]} 23... Ng3+ {[%clk
0:01:13.7]} 24. Kg1 {[%clk 0:01:22.8]} 24... Rf6 {[%clk 0:01:03.9]} 25. Qf4
{[%clk 0:01:14.7]} 25... Qb6+ {[%clk 0:00:57.5]} 26. Kh2 {[%clk 0:01:11.9]}
26... Nxf1+ {[%clk 0:00:56.5]} 27. Rxf1 {[%clk 0:01:11.2]} 27... Qc6 {[%clk
0:00:54.7]} 28. Rf2 {[%clk 0:01:08.9]} 28... Re8 {[%clk 0:00:50.5]} 29. Ne2
{[%clk 0:01:07.6]} 29... Qd6 {[%clk 0:00:36.2]} 30. Qxd6 {[%clk 0:01:06]} 30...
Rxd6 {[%clk 0:00:37.1]} 31. Nc3 {[%clk 0:00:47.4]} 31... Re1 {[%clk 0:00:35.5]}
32. b3 {[%clk 0:00:46.2]} 32... Rxa1 {[%clk 0:00:35.4]} 33. bxc4 {[%clk
0:00:46.2]} 33... bxc4 {[%clk 0:00:36.3]} 34. Na4 {[%clk 0:00:43.4]} 34... Rxa3
{[%clk 0:00:36.3]} 35. Nc5 {[%clk 0:00:43.1]} 35... Bc6 {[%clk 0:00:36.1]} 36.
Re2 {[%clk 0:00:31.3]} 36... Ra5 {[%clk 0:00:36.2]} 37. Ne4 {[%clk 0:00:24.9]}
37... Bxe4 {[%clk 0:00:35.5]} 38. Rxe4 {[%clk 0:00:23.7]} 38... Rxf5 {[%clk
0:00:36.1]} 0-1

[Event "Late-Titled-Tuesday-Blitz-February-20-2024"]
[Site "Chess.com"]
[Date "2024.02.20"]
[Round "8"]
[White "egnfanclub"]
[Black "ImportedItalianMaple"]
[Result "1-0"]
[WhiteElo "2395"]
[BlackElo "2497"]
[TimeControl "180+1"]
[EndTime "15:27:26 PST"]
[Termination "egnfanclub won by checkmate"]

1. e4 {[%clk 0:03:00.9]} 1... g6 {[%clk 0:03:00.1]} 2. Nc3 {[%clk 0:03:00.3]}
2... Bg7 {[%clk 0:03:00.1]} 3. f4 {[%clk 0:03:01]} 3... c6 {[%clk 0:02:56.9]} 4.
d4 {[%clk 0:02:58.3]} 4... d5 {[%clk 0:02:56.7]} 5. e5 {[%clk 0:02:58.4]} 5...
h5 {[%clk 0:02:54.8]} 6. h3 {[%clk 0:02:58.5]} 6... Nh6 {[%clk 0:02:49.3]} 7.
Bd3 {[%clk 0:02:56.9]} 7... Bf5 {[%clk 0:02:46.2]} 8. Nge2 {[%clk 0:02:57]} 8...
h4 {[%clk 0:02:42.9]} 9. Be3 {[%clk 0:02:52.2]} 9... e6 {[%clk 0:02:42.9]} 10.
Qd2 {[%clk 0:02:51.8]} 10... Bxd3 {[%clk 0:02:40.9]} 11. Qxd3 {[%clk 0:02:49.6]}
11... Nf5 {[%clk 0:02:41.4]} 12. Bf2 {[%clk 0:02:47.7]} 12... Nd7 {[%clk
0:02:38.2]} 13. O-O-O {[%clk 0:02:47.8]} 13... b5 {[%clk 0:02:36.5]} 14. g4
{[%clk 0:02:47.7]} 14... hxg3 {[%clk 0:02:36.6]} 15. Nxg3 {[%clk 0:02:47.7]}
15... Nxg3 {[%clk 0:02:35.8]} 16. Bxg3 {[%clk 0:02:36.6]} 16... b4 {[%clk
0:02:20.4]} 17. Na4 {[%clk 0:02:28]} 17... Qa5 {[%clk 0:02:19.4]} 18. Qb3 {[%clk
0:02:16]} 18... Bf8 {[%clk 0:02:12.2]} 19. Bf2 {[%clk 0:01:54.6]} 19... Nb6
{[%clk 0:02:12.2]} 20. Nc5 {[%clk 0:01:54.3]} 20... Bxc5 {[%clk 0:02:07.7]} 21.
dxc5 {[%clk 0:01:53.9]} 21... Nd7 {[%clk 0:02:08.2]} 22. Qe3 {[%clk 0:01:36.4]}
22... Qxa2 {[%clk 0:02:06.3]} 23. Qd4 {[%clk 0:01:28.3]} 23... Qa5 {[%clk
0:02:00.2]} 24. h4 {[%clk 0:01:22.7]} 24... Rh5 {[%clk 0:01:58.5]} 25. Rhg1
{[%clk 0:01:12.1]} 25... Qb5 {[%clk 0:01:52.9]} 26. Rg5 {[%clk 0:01:05.5]} 26...
Rxg5 {[%clk 0:01:50.1]} 27. hxg5 {[%clk 0:01:06.4]} 27... a5 {[%clk 0:01:44.5]}
28. Rh1 {[%clk 0:01:06.2]} 28... Ke7 {[%clk 0:01:44.4]} 29. f5 {[%clk
0:00:59.4]} 29... Qc4 {[%clk 0:00:33.7]} 30. f6+ {[%clk 0:00:45.9]} 30... Ke8
{[%clk 0:00:33.8]} 31. Rh8+ {[%clk 0:00:45.5]} 31... Nf8 {[%clk 0:00:34.4]} 32.
Qd1 {[%clk 0:00:38.7]} 32... a4 {[%clk 0:00:20.2]} 33. Qh1 {[%clk 0:00:38.2]}
33... a3 {[%clk 0:00:20.8]} 34. Rxf8+ {[%clk 0:00:37.4]} 34... Kd7 {[%clk
0:00:18.6]} 35. Rxa8 {[%clk 0:00:36.8]} 35... axb2+ {[%clk 0:00:17.7]} 36. Kb1
{[%clk 0:00:33.4]} 36... b3 {[%clk 0:00:14.7]} 37. Ra7+ {[%clk 0:00:33.6]} 37...
Kc8 {[%clk 0:00:15.2]} 38. Qh8# {[%clk 0:00:33.3]} 1-0

[Event "Late-Titled-Tuesday-Blitz-February-20-2024"]
[Site "Chess.com"]
[Date "2024.02.20"]
[Round "8"]
[White "pavet"]
[Black "micke12a"]
[Result "1-0"]
[WhiteElo "2736"]
[BlackElo "2369"]
[TimeControl "180+1"]
[EndTime "15:27:27 PST"]
[Termination "pavet won on time"]

1. e4 {[%clk 0:03:00.9]} 1... c5 {[%clk 0:02:50.3]} 2. Nf3 {[%clk 0:02:59.3]}
2... d6 {[%clk 0:02:40.9]} 3. d4 {[%clk 0:02:57.9]} 3... cxd4 {[%clk 0:02:41.8]}
4. Nxd4 {[%clk 0:02:58.7]} 4... Nf6 {[%clk 0:02:42.3]} 5. Nc3 {[%clk 0:02:59.4]}
5... g6 {[%clk 0:02:43]} 6. Be3 {[%clk 0:02:59.5]} 6... Bg7 {[%clk 0:02:43.7]}
7. f3 {[%clk 0:03:00.1]} 7... O-O {[%clk 0:02:44.3]} 8. Qd2 {[%clk 0:03:00.7]}
8... Nc6 {[%clk 0:02:44.7]} 9. O-O-O {[%clk 0:03:01.4]} 9... Bd7 {[%clk
0:02:45.3]} 10. h4 {[%clk 0:03:00.4]} 10... Rc8 {[%clk 0:02:44.5]} 11. h5 {[%clk
0:03:00.3]} 11... Nxh5 {[%clk 0:02:44.5]} 12. Nxc6 {[%clk 0:02:58.3]} 12... bxc6
{[%clk 0:02:32.3]} 13. Bd4 {[%clk 0:02:58.3]} 13... Nf6 {[%clk 0:02:19.6]} 14.
g4 {[%clk 0:02:57]} 14... c5 {[%clk 0:02:02]} 15. Be3 {[%clk 0:02:52.9]} 15...
Qa5 {[%clk 0:01:44.7]} 16. Qh2 {[%clk 0:02:42.7]} 16... h5 {[%clk 0:01:36.7]}
17. e5 {[%clk 0:02:35.6]} 17... Nxg4 {[%clk 0:01:23]} 18. fxg4 {[%clk
0:02:33.9]} 18... Bxe5 {[%clk 0:01:23.1]} 19. Bf4 {[%clk 0:01:51.2]} 19... Bxc3
{[%clk 0:01:16.4]} 20. bxc3 {[%clk 0:01:52.1]} 20... Bxg4 {[%clk 0:01:13.8]} 21.
Rd3 {[%clk 0:01:42.7]} 21... Qxa2 {[%clk 0:01:10.4]} 22. Kd2 {[%clk 0:01:35.2]}
22... Rb8 {[%clk 0:01:01]} 23. Rg3 {[%clk 0:01:31]} 23... Bf5 {[%clk 0:00:55.1]}
24. Bd3 {[%clk 0:00:40.1]} 24... Bxd3 {[%clk 0:00:49.9]} 25. Kxd3 {[%clk
0:00:36.7]} 25... Qd5+ {[%clk 0:00:45.6]} 26. Ke3 {[%clk 0:00:37]} 26... e5
{[%clk 0:00:25.1]} 27. Bh6 {[%clk 0:00:31]} 27... Rfe8 {[%clk 0:00:16.9]} 28.
Qxh5 {[%clk 0:00:31.2]} 28... c4 {[%clk 0:00:04]} 29. Rxg6+ {[%clk 0:00:29.6]}
1-0